bitfinex/quotes_BTCUSD_20251009
["timestamp","ask_amount","ask_price","bid_price","bid_amount"]
[1759975019089,0.00368665,122570.0,122560.0,0.82295053]
[1759975019337,0.00368665,122570.0,122560.0,1.11856362]
[1759975020812,0.00368665,122570.0,122560.0,0.88816362]
[1759975021018,0.00368665,122570.0,122560.0,1.11856362]
[1759975022066,0.00368665,122570.0,122560.0,0.80328362]
[1759975022326,0.00368665,122570.0,122560.0,1.11856362]
[1759975029460,0.00368665,122570.0,122560.0,0.80328362]
[1759975029681,0.00368665,122570.0,122560.0,1.11852362]
[1759975029892,0.00368665,122570.0,122560.0,1.38412362]
[1759975032193,0.00368665,122570.0,122560.0,1.15376362]
[1759975032397,0.00368665,122570.0,122560.0,1.38412362]
[1759975033223,0.00368665,122570.0,122560.0,1.06888362]
[1759975033401,0.00368665,122570.0,122560.0,1.38412362]
[1759975035367,0.00368665,122570.0,122560.0,0.98888682]
[1759975035598,0.00368665,122570.0,122560.0,1.30412682]
[1759975035808,0.00368665,122570.0,122560.0,1.03852682]
[1759975036438,0.00368665,122570.0,122560.0,0.74291373]
[1759975036883,0.00368665,122570.0,122560.0,1.03852682]
[1759975037091,0.00368665,122570.0,122560.0,0.88816362]
[1759975037276,0.00368665,122570.0,122560.0,1.11852362]
[1759975037501,0.00368665,122570.0,122560.0,0.82291053]
[1759975037711,0.00368665,122570.0,122560.0,1.11852362]
[1759975038375,0.00368665,122570.0,122560.0,0.88816362]
[1759975038553,0.00368665,122570.0,122560.0,1.11852362]
[1759975038778,0.00368665,122570.0,122560.0,0.82291053]
[1759975038961,0.00368665,122570.0,122560.0,1.11852362]
[1759975039847,0.00368665,122570.0,122560.0,0.88816362]
[1759975040058,0.00368665,122570.0,122560.0,1.11852362]
[1759975041205,0.00368665,122570.0,122560.0,1.22106673]
[1759975042840,0.00368665,122570.0,122560.0,0.90582673]
[1759975043054,0.00368665,122570.0,122560.0,1.22106673]
[1759975046986,0.00368665,122570.0,122560.0,0.90582673]
[1759975047188,0.00368665,122570.0,122560.0,1.22106673]
[1759975047550,0.00368665,122570.0,122560.0,0.69509364]
[1759975047750,0.00368665,122570.0,122560.0,1.22106673]
[1759975048011,0.00368665,122570.0,122560.0,1.36840254]
[1759975054678,0.00368665,122570.0,122560.0,1.13804254]
[1759975054901,0.00368665,122570.0,122560.0,1.36836254]
[1759975055139,0.00368665,122570.0,122560.0,1.13804254]
[1759975055328,0.00368665,122570.0,122560.0,1.36836254]
[1759975055563,0.00368665,122570.0,122560.0,1.26581943]
[1759975055778,0.00368665,122570.0,122560.0,1.03549943]
[1759975055999,0.00268665,122570.0,122560.0,1.26081943]
[1759975056232,0.00268665,122570.0,122560.0,0.81787053]
[1759975056452,0.00368665,122570.0,122560.0,1.26281943]
[1759975057047,0.00368665,122570.0,122560.0,1.03249943]
[1759975057470,0.00368665,122570.0,122560.0,1.26281943]
[1759975060656,0.00368665,122570.0,122560.0,1.03249943]
[1759975060869,0.00368665,122570.0,122560.0,1.26281943]
[1759975061547,0.00368665,122570.0,122560.0,1.03249943]
[1759975061767,0.00368665,122570.0,122560.0,1.26281943]
[1759975062745,0.00368665,122570.0,122560.0,1.03249943]
[1759975062983,0.00368665,122570.0,122560.0,1.26281943]
[1759975063854,0.00368665,122570.0,122560.0,1.25397388]
[1759975064004,0.00368665,122570.0,122560.0,1.26281943]
[1759975064217,0.00368665,122570.0,122560.0,1.25397388]
[1759975064403,0.00368665,122570.0,122560.0,1.48429388]
[1759975065734,0.00268665,122570.0,122560.0,1.48229388]
[1759975066140,0.00368665,122570.0,122560.0,1.48529388]
[1759975066604,0.00368665,122570.0,122560.0,1.48729388]
[1759975069101,1e-08,122570.0,122560.0,1.62197387]
[1759975069353,0.0004,122580.0,122570.0,0.55832395]
[1759975069561,0.00045,122580.0,122570.0,1.42995171]
[1759975069853,0.00095716,122580.0,122570.0,1.44519171]
[1759975070060,0.00095716,122580.0,122570.0,1.46968379]
[1759975071358,4.05314913,122600.0,122590.0,0.16314544]
[1759975071585,4.05319913,122600.0,122590.0,0.70581674]
[1759975071775,4.05319913,122600.0,122590.0,1.04628544]
[1759975071947,4.05421324,122600.0,122590.0,1.04628544]
[1759975072132,4.05421324,122600.0,122590.0,1.07077686]
[1759975072751,4.05621324,122600.0,122590.0,1.07077686]
[1759975073198,4.05721324,122600.0,122590.0,1.07177686]
[1759975074004,4.05721324,122600.0,122590.0,0.75657686]
[1759975074210,4.05721324,122600.0,122590.0,1.07173686]
[1759975074661,4.05721324,122600.0,122590.0,1.29321131]
[1759975074856,4.05721324,122600.0,122590.0,1.07173686]
[1759975075590,4.05721324,122600.0,122590.0,0.96902207]
[1759975076442,4.05721324,122600.0,122590.0,0.74754762]
[1759975076668,4.05721324,122600.0,122590.0,0.96902207]
[1759975077644,4.05721324,122600.0,122590.0,0.74754762]
[1759975077835,4.05721324,122600.0,122590.0,0.96902207]
[1759975078033,4.05721324,122600.0,122590.0,1.07173686]
[1759975078240,4.05721324,122600.0,122590.0,0.96902207]
[1759975078750,4.05721324,122600.0,122590.0,0.43238762]
[1759975078965,4.05721324,122600.0,122590.0,0.96898207]
[1759975079192,4.05721324,122600.0,122590.0,0.74750762]
[1759975079417,4.05721324,122600.0,122590.0,0.96898207]
[1759975080065,4.05721324,122600.0,122590.0,1.07169686]
[1759975080292,4.05721324,122600.0,122590.0,0.85022241]
[1759975080527,4.05721324,122600.0,122590.0,1.07169686]
[1759975081210,4.05721324,122600.0,122590.0,1.06289131]
[1759975081658,4.05721324,122600.0,122590.0,1.29317131]
[1759975082063,4.05721324,122600.0,122590.0,1.06289131]
[1759975082284,4.05721324,122600.0,122590.0,1.29317131]
[1759975082487,4.05721324,122600.0,122590.0,1.06289131]
[1759975082660,4.05721324,122600.0,122590.0,1.29317131]
[1759975083190,4.05721324,122600.0,122590.0,1.06289131]
[1759975083362,4.05721324,122600.0,122590.0,1.29317131]
[1759975088610,4.05721324,122600.0,122590.0,0.97805131]
[1759975088860,4.05721324,122600.0,122590.0,1.20833131]
[1759975089047,4.05721324,122600.0,122590.0,1.63261131]
[1759975099202,4.05721324,122600.0,122590.0,0.53510241]
[1759975099410,4.05721324,122600.0,122590.0,1.18966241]
[1759975099861,4.05721324,122600.0,122590.0,1.41113686]
[1759975100092,4.05721324,122600.0,122590.0,1.63261131]
[1759975102242,4.05721324,122600.0,122590.0,1.52989652]
[1759975106566,4.05721324,122600.0,122590.0,1.08694762]
[1759975106774,4.05721324,122600.0,122590.0,1.52989652]
[1759975109627,4.05721324,122600.0,122590.0,1.63961652]
[1759975110050,4.05721324,122600.0,122590.0,1.49175181]
[1759975110257,4.05721324,122600.0,122590.0,1.786836]
[1759975110410,4.05721324,122600.0,122590.0,2.017116]
[1759975110781,4.04395546,122600.0,122590.0,2.017116]
[1759975111188,4.04295546,122600.0,122590.0,2.016116]
[1759975111386,4.04095546,122600.0,122590.0,2.016116]
[1759975111606,4.04195546,122600.0,122590.0,2.018116]
[1759975111758,4.04195546,122600.0,122590.0,2.020116]
[1759975112925,4.04195546,122600.0,122590.0,1.789836]
[1759975113102,4.04195546,122600.0,122590.0,2.020076]
[1759975114088,4.04195546,122600.0,122590.0,2.16676127]
[1759975114300,3.41354642,122600.0,122590.0,1.96152126]
[1759975114456,3.34716937,122600.0,122590.0,2.19180126]
[1759975114660,3.22340227,122600.0,122590.0,2.19180126]
[1759975114865,2.99178629,122600.0,122590.0,2.04511599]
[1759975115066,2.87407403,122600.0,122590.0,2.04511599]
[1759975115327,2.77227441,122600.0,122590.0,1.81483599]
[1759975115554,2.48787095,122600.0,122590.0,2.04511599]
[1759975115757,2.35640641,122600.0,122590.0,1.81483599]
[1759975115938,2.22679773,122600.0,122590.0,1.81283599]
[1759975116133,2.08838205,122600.0,122590.0,2.04311599]
[1759975116340,1.87693432,122600.0,122590.0,1.81483599]
[1759975116573,1.7006732,122600.0,122590.0,2.05111599]
[1759975116776,1.63907146,122600.0,122590.0,1.82083599]
[1759975116975,1.63907146,122600.0,122590.0,2.05111599]
[1759975117974,1.63907146,122600.0,122590.0,2.05107599]
[1759975120162,1.15959145,122600.0,122590.0,2.15107598]
[1759975126973,1.15959145,122600.0,122590.0,1.72675598]
[1759975127180,1.15959145,122600.0,122590.0,2.15095598]
[1759975130632,1.15959145,122600.0,122590.0,1.49655598]
[1759975130838,1.15959145,122600.0,122590.0,1.3004357]
[1759975131052,1.15959145,122600.0,122590.0,1.39052311]
[1759975131255,1.15959145,122600.0,122590.0,1.28072311]
[1759975131484,1.15959145,122600.0,122590.0,1.31087501]
[1759975131681,1.15959145,122600.0,122590.0,1.65087501]
[1759975131890,1.14633483,122600.0,122590.0,1.83333943]
[1759975137570,1.14633483,122600.0,122590.0,1.40913943]
[1759975137778,1.14633483,122600.0,122590.0,1.83333943]
[1759975140410,1.14633483,122600.0,122590.0,1.60313943]
[1759975140619,1.14633483,122600.0,122590.0,1.83333943]
[1759975141821,1.14633483,122600.0,122590.0,1.73087181]
[1759975144411,1.14633483,122600.0,122590.0,1.50067181]
[1759975144642,1.14633483,122600.0,122590.0,1.73087181]
[1759975147346,1.14633483,122600.0,122590.0,1.07647181]
[1759975147671,1.14633483,122600.0,122590.0,1.73095181]
[1759975147860,1.14633483,122600.0,122590.0,1.73091181]
[1759975148827,1.14633483,122600.0,122590.0,1.99651181]
[1759975150243,1.14633483,122600.0,122590.0,1.27718762]
[1759975150495,1.14633483,122600.0,122590.0,1.99651181]
[1759975151330,1.14533483,122600.0,122590.0,1.99251181]
[1759975151538,1.14633483,122600.0,122590.0,1.98951181]
[1759975151718,1.14633483,122600.0,122590.0,1.99251181]
[1759975156689,1.14633483,122600.0,122590.0,1.76231181]
[1759975156850,1.14633483,122600.0,122590.0,1.99251181]
[1759975158024,1.14633483,122600.0,122590.0,1.76231181]
[1759975158225,1.14633483,122600.0,122590.0,1.99251181]
[1759975159630,1.14633483,122600.0,122590.0,1.33807181]
[1759975159840,1.14633483,122600.0,122590.0,1.99251181]
[1759975161912,1.14633483,122600.0,122590.0,1.76231181]
[1759975162112,1.14633483,122600.0,122590.0,1.99251181]
[1759975169356,1.14633483,122600.0,122590.0,1.76231181]
[1759975169559,1.14633483,122600.0,122590.0,1.99251181]
[1759975169719,1.14633483,122600.0,122590.0,1.76231181]
[1759975169914,1.14633483,122600.0,122590.0,1.90988572]
[1759975170113,1.14633483,122600.0,122590.0,2.14008572]
[1759975170962,1.14633483,122600.0,122590.0,1.90988572]
[1759975171165,1.14633483,122600.0,122590.0,2.14008572]
[1759975172029,1.14633483,122600.0,122590.0,1.64428572]
[1759975172238,1.14633483,122600.0,122590.0,1.87448572]
[1759975173276,1.14633483,122600.0,122590.0,1.64428572]
[1759975173479,1.14633483,122600.0,122590.0,1.87448572]
[1759975173676,1.14633483,122600.0,122590.0,1.64428572]
[1759975173972,1.14633483,122600.0,122590.0,1.87448572]
[1759975178553,1.14633483,122600.0,122590.0,1.22004572]
[1759975178790,1.14633483,122600.0,122590.0,1.87448572]
[1759975200472,1.14633483,122600.0,122590.0,1.22004572]
[1759975200693,1.13307665,122600.0,122590.0,1.2244274]
[1759975200966,1.13307665,122600.0,122590.0,1.67595645]
[1759975201211,1.13307665,122600.0,122590.0,1.57315987]
[1759975201706,1.13307665,122600.0,122590.0,1.34295987]
[1759975201985,1.13307665,122600.0,122590.0,1.35183082]
[1759975202193,1.13307665,122600.0,122590.0,1.57315987]
[1759975202609,1.13307665,122600.0,122590.0,1.65315667]
[1759975204788,1.13307665,122600.0,122590.0,1.42295667]
[1759975205221,1.13307665,122600.0,122590.0,1.65315667]
[1759975205603,1.13307665,122600.0,122590.0,1.57315987]
[1759975206374,1.13307665,122600.0,122590.0,1.34295987]
[1759975206580,1.13307665,122600.0,122590.0,1.57315987]
[1759975207273,1.79575688,122600.0,122590.0,0.03049142]
[1759975207417,1.79575688,122600.0,122590.0,0.2426]
[1759975207626,1.82025394,122600.0,122590.0,0.2426]
[1759975207810,1.82025394,122600.0,122590.0,0.32104]
[1759975208029,1.81925394,122600.0,122590.0,0.31504]
[1759975208421,1.82425394,122600.0,122590.0,0.31604]
[1759975209255,1.60292489,122600.0,122590.0,0.31604]
[1759975210558,1.60292489,122600.0,122590.0,0.08584]
[1759975210783,1.60292489,122600.0,122590.0,0.31604]
[1759975211277,1.60292489,122600.0,122590.0,0.08584]
[1759975211495,1.60292489,122600.0,122590.0,0.31604]
[1759975212385,1.38159584,122600.0,122590.0,0.08584]
[1759975212621,1.57647489,122600.0,122590.0,0.34673]
[1759975212855,1.60292489,122600.0,122590.0,0.31604]
[1759975213758,1.60292489,122600.0,122590.0,0.08584]
[1759975213975,1.60292489,122600.0,122590.0,0.31604]
[1759975214631,1.38159584,122600.0,122590.0,0.31604]
[1759975214830,1.38159584,122600.0,122590.0,0.08584]
[1759975215069,1.38159584,122600.0,122590.0,0.31604]
[1759975218583,1.38159584,122600.0,122590.0,0.08584]
[1759975218810,1.38159584,122600.0,122590.0,0.31604]
[1759975219542,1.38159584,122600.0,122590.0,0.08584]
[1759975219756,1.38159584,122600.0,122590.0,0.31604]
[1759975221205,1.38159584,122600.0,122590.0,0.08584]
[1759975221437,1.38159584,122600.0,122590.0,0.31604]
[1759975224138,1.60292489,122600.0,122590.0,0.31604]
[1759975224961,1.33783584,122600.0,122590.0,0.62081404]
[1759975225162,1.16157371,122600.0,122590.0,0.61194309]
[1759975225365,1.13707665,122600.0,122590.0,0.92530515]
[1759975225566,1.13707665,122600.0,122590.0,0.94979955]
[1759975225803,1.13707665,122600.0,122590.0,0.71955955]
[1759975226143,1.13707665,122600.0,122590.0,0.97995145]
[1759975226639,1.13707665,122600.0,122590.0,1.2012805]
[1759975226856,1.13707665,122600.0,122590.0,1.2512805]
[1759975227278,1.13707665,122600.0,122590.0,1.5912805]
[1759975227713,1.13207665,122600.0,122590.0,1.5902805]
[1759975228115,1.13207665,122600.0,122590.0,1.6186805]
[1759975228316,1.13307665,122600.0,122590.0,1.9367205]
[1759975228534,1.13307665,122600.0,122590.0,2.03951708]
[1759975230034,1.13307665,122600.0,122590.0,2.03947708]
[1759975230217,1.13307665,122600.0,122590.0,2.03112492]
[1759975230687,1.13307665,122600.0,122590.0,1.80092492]
[1759975230892,1.13307665,122600.0,122590.0,2.03112492]
[1759975231506,1.13307665,122600.0,122590.0,1.92832834]
[1759975231989,1.13307665,122600.0,122590.0,1.78076107]
[1759975234919,1.13307665,122600.0,122590.0,1.55056107]
[1759975235122,1.13307665,122600.0,122590.0,1.78076107]
[1759975235543,1.13307665,122600.0,122590.0,1.55056107]
[1759975235745,1.13307665,122600.0,122590.0,1.78076107]
[1759975235976,1.13307665,122600.0,122590.0,1.55056107]
[1759975236176,1.13307665,122600.0,122590.0,1.78076107]
[1759975237468,1.13307665,122600.0,122590.0,1.12628107]
[1759975237670,1.13307665,122600.0,122590.0,1.78076107]
[1759975239058,1.13307665,122600.0,122590.0,1.88355765]
[1759975239783,1.13307665,122600.0,122590.0,1.22907765]
[1759975239961,1.13307665,122600.0,122590.0,1.88355765]
[1759975242427,1.13277665,122600.0,122590.0,1.88355765]
[1759975242581,1.13277665,122600.0,122590.0,1.78076107]
[1759975245003,1.13277665,122600.0,122590.0,0.83119024]
[1759975245205,1.13277665,122600.0,122590.0,1.12628107]
[1759975245408,1.13277665,122600.0,122590.0,0.7547638]
[1759975245607,1.13277665,122600.0,122590.0,1.1488519]
[1759975245972,1.13277665,122600.0,122590.0,0.8088519]
[1759975246165,1.13277665,122600.0,122590.0,1.0390119]
[1759975247227,1.13277665,122600.0,122590.0,0.4694519]
[1759975247422,1.29590878,122600.0,122590.0,0.4694519]
[1759975247700,1.35064878,122600.0,122590.0,0.4126019]
[1759975247923,1.67023503,122600.0,122590.0,0.45512206]
[1759975248124,1.67023503,122600.0,122590.0,0.37028206]
[1759975248258,1.67023503,122600.0,122590.0,0.45512206]
[1759975248483,1.3751442,122600.0,122590.0,0.45512206]
[1759975248650,1.3741442,122600.0,122590.0,0.45212206]
[1759975249072,1.3751442,122600.0,122590.0,0.45312206]
[1759975249284,1.3751442,122600.0,122590.0,0.44912206]
[1759975249486,1.3751442,122600.0,122590.0,0.2972675]
[1759975249729,1.3751442,122600.0,122590.0,0.44912206]
[1759975252420,1.3751442,122600.0,122590.0,0.051]
[1759975252757,1.3751442,122600.0,122590.0,0.36604]
[1759975253206,1.3751442,122600.0,122590.0,0.55824544]
[1759975253207,1.3499942,122600.0,122590.0,0.55824544]
[1759975254397,1.3751442,122600.0,122590.0,0.36604]
[1759975255878,1.3751442,122600.0,122590.0,0.31604]
[1759975260676,1.67023503,122600.0,122590.0,0.31604]
[1759975261496,1.66923503,122600.0,122590.0,0.31504]
[1759975261719,0.16315875,122580.0,122570.0,0.20006814]
[1759975261900,0.16315875,122580.0,122570.0,0.3842702]
[1759975262107,0.49578336,122590.0,122570.0,0.3842702]
[1759975262304,0.49578336,122590.0,122580.0,0.2302]
[1759975262514,0.16315875,122580.0,122570.0,0.3680302]
[1759975262712,0.16315875,122580.0,122570.0,0.3842702]
[1759975262914,0.18030875,122580.0,122570.0,0.5888302]
[1759975263122,0.18130875,122580.0,122570.0,0.3852702]
[1759975263493,0.18130875,122580.0,122570.0,0.22210206]
[1759975263686,0.51108958,122580.0,122570.0,0.08584]
[1759975264460,0.51108958,122580.0,122570.0,0.31604]
[1759975264670,0.51108958,122580.0,122570.0,0.08584]
[1759975264872,0.51108958,122580.0,122570.0,0.31604]
[1759975266752,0.51108958,122580.0,122570.0,0.08584]
[1759975266946,0.51108958,122580.0,122570.0,0.31608]
[1759975267817,0.51108958,122580.0,122570.0,0.001]
[1759975268030,0.51108958,122580.0,122570.0,0.25636]
[1759975268758,0.51941696,122580.0,122570.0,0.25636]
[1759975269147,0.51941696,122580.0,122570.0,0.001]
[1759975269354,0.85941696,122580.0,122570.0,0.001]
[1759975269579,0.85941696,122580.0,122570.0,0.00772]
[1759975270668,0.86641696,122580.0,122570.0,0.00772]
[1759975271040,0.16317206,122570.0,122560.0,0.08623736]
[1759975271329,0.51066289,122570.0,122560.0,0.16887736]
[1759975272224,0.51366289,122570.0,122560.0,0.16987736]
[1759975272647,0.21857206,122570.0,122560.0,0.16987736]
[1759975272864,0.51366289,122570.0,122560.0,0.16987736]
[1759975273105,0.51866289,122570.0,122560.0,0.16987736]
[1759975273523,0.22357206,122570.0,122560.0,0.23259736]
[1759975273730,0.51866289,122570.0,122560.0,0.23259736]
[1759975274844,0.22357206,122570.0,122560.0,0.23259736]
[1759975275071,0.51866289,122570.0,122560.0,0.23259736]
[1759975285075,0.51866289,122570.0,122560.0,0.23263736]
[1759975285292,0.51866289,122570.0,122560.0,0.00235736]
[1759975285588,1.25210602,122570.0,122560.0,0.00235736]
[1759975285772,1.50689405,122570.0,122560.0,0.00235736]
[1759975286387,0.16322533,122530.0,122520.0,0.06619503]
[1759975286596,0.46989616,122530.0,122520.0,0.15107503]
[1759975286750,0.50985616,122530.0,122520.0,0.15107503]
[1759975286960,0.50985616,122530.0,122520.0,0.38143503]
[1759975287210,0.50985616,122530.0,122520.0,0.31524]
[1759975287637,0.51485616,122530.0,122520.0,0.31539011]
[1759975287854,0.51785616,122530.0,122520.0,0.31639011]
[1759975292049,0.44448966,122530.0,122520.0,0.31639011]
[1759975292450,0.44448966,122530.0,122520.0,0.31841988]
[1759975295583,0.44448966,122530.0,122520.0,0.00317988]
[1759975295813,0.44448966,122530.0,122520.0,0.23361988]
[1759975296045,0.22276533,122530.0,122520.0,0.00317988]
[1759975296274,0.44448966,122530.0,122520.0,0.23361988]
[1759975299123,0.44448966,122530.0,122520.0,0.23357988]
[1759975299368,1.02903723,122530.0,122520.0,0.00317988]
[1759975299599,1.02903723,122530.0,122520.0,0.23357988]
[1759975299821,1.05355205,122530.0,122520.0,0.23357988]
[1759975302482,1.05351124,122530.0,122520.0,0.23357988]
[1759975303568,1.05351124,122530.0,122520.0,0.00317988]
[1759975303862,1.03829559,122530.0,122520.0,0.23369988]
[1759975304065,1.05348962,122530.0,122520.0,0.23369988]
[1759975304284,1.05348962,122530.0,122520.0,0.00317988]
[1759975304501,1.05348962,122530.0,122520.0,0.23369988]
[1759975304749,1.05048962,122530.0,122520.0,0.23269988]
[1759975304962,1.13361168,122530.0,122520.0,0.00217988]
[1759975305184,1.13161168,122530.0,122520.0,0.00317988]
[1759975305420,1.13161051,122530.0,122520.0,0.00317988]
[1759975305638,1.13161051,122530.0,122520.0,0.00417988]
[1759975308554,1.36213051,122530.0,122520.0,0.00417988]
[1759975308962,1.13161051,122530.0,122520.0,0.00417988]
[1759975310828,1.36213051,122530.0,122520.0,0.00417988]
[1759975311214,1.13161051,122530.0,122520.0,0.00417988]
[1759975311419,1.36213051,122530.0,122520.0,0.00417988]
[1759975312268,1.33813377,122530.0,122520.0,0.00417988]
[1759975312498,1.58385791,122530.0,122520.0,0.00417988]
[1759975312702,0.50325197,122510.0,122500.0,0.0046]
[1759975312908,0.50325197,122510.0,122490.0,0.08492]
[1759975312909,0.16329196,122480.0,122470.0,0.06619503]
[1759975313113,0.43695629,122480.0,122470.0,0.06669599]
[1759975313303,0.43695629,122480.0,122470.0,0.38217599]
[1759975313755,0.43695629,122480.0,122470.0,0.31598096]
[1759975314397,0.43695629,122480.0,122470.0,0.47928625]
[1759975314574,0.19128196,122480.0,122470.0,0.49593625]
[1759975314903,0.19228196,122480.0,122470.0,0.50793625]
[1759975315332,0.19328196,122480.0,122470.0,0.51193625]
[1759975319152,0.21723196,122480.0,122470.0,0.51193625]
[1759975319386,0.19328196,122480.0,122470.0,0.51193625]
[1759975319598,0.43895629,122480.0,122470.0,0.01903962]
[1759975319779,0.43895629,122480.0,122470.0,0.49778491]
[1759975320041,0.43895629,122480.0,122470.0,0.33447962]
[1759975320231,0.43895629,122480.0,122470.0,0.01903962]
[1759975320232,0.66068062,122480.0,122470.0,0.01903962]
[1759975320463,0.66068062,122480.0,122470.0,0.33447962]
[1759975320641,0.66068062,122480.0,122470.0,0.10395962]
[1759975320964,0.66068062,122480.0,122470.0,0.24959962]
[1759975321553,0.65968062,122480.0,122470.0,0.24559962]
[1759975321777,0.89559791,122480.0,122470.0,0.00303962]
[1759975321986,1.23659791,122480.0,122470.0,0.00603962]
[1759975322310,1.46723791,122480.0,122470.0,0.01303962]
[1759975322510,1.46723791,122480.0,122470.0,0.00603962]
[1759975322676,1.55035209,122480.0,122470.0,0.00603962]
[1759975322880,1.55035209,122480.0,122470.0,0.00903962]
[1759975323083,1.56079209,122480.0,122470.0,0.00903962]
[1759975323287,1.56837999,122480.0,122470.0,0.00903962]
[1759975323898,1.56737999,122480.0,122470.0,0.00603962]
[1759975324524,1.56937999,122480.0,122470.0,0.00703962]
[1759975324744,1.56937999,122480.0,122470.0,0.00403962]
[1759975324952,1.63088446,122480.0,122470.0,0.00403962]
[1759975325400,1.39824446,122480.0,122470.0,0.00403962]
[1759975325611,1.62892446,122480.0,122470.0,0.00403962]
[1759975326051,2.29709745,122480.0,122470.0,0.00503962]
[1759975326667,2.38201745,122480.0,122470.0,1e-08]
[1759975326872,2.48201744,122480.0,122470.0,1e-08]
[1759975327080,2.48205744,122480.0,122470.0,1e-08]
[1759975327510,2.06641745,122480.0,122470.0,1e-08]
[1759975327691,1.48620446,122480.0,122470.0,1e-08]
[1759975327939,1.71692446,122480.0,122470.0,1e-08]
[1759975328149,1.81692445,122480.0,122470.0,1e-08]
[1759975328363,1.50124445,122480.0,122470.0,1e-08]
[1759975328571,1.71692446,122480.0,122470.0,1e-08]
[1759975328776,1.58620445,122480.0,122470.0,1e-08]
[1759975329002,1.81692445,122480.0,122470.0,1e-08]
[1759975329387,1.50124445,122480.0,122470.0,1e-08]
[1759975329586,1.81692445,122480.0,122470.0,1e-08]
[1759975329793,1.58620445,122480.0,122470.0,1e-08]
[1759975329993,1.81692445,122480.0,122470.0,1e-08]
[1759975330200,1.40124446,122480.0,122470.0,1e-08]
[1759975330406,1.81692445,122480.0,122470.0,1e-08]
[1759975330606,1.40124446,122480.0,122470.0,1e-08]
[1759975330819,1.71692446,122480.0,122470.0,1e-08]
[1759975330980,1.81692445,122480.0,122470.0,1e-08]
[1759975332288,2.48209744,122480.0,122470.0,1e-08]
[1759975333644,2.38209745,122480.0,122470.0,1e-08]
[1759975334504,2.48209744,122480.0,122470.0,1e-08]
[1759975334703,2.56806744,122480.0,122470.0,1e-08]
[1759975334923,2.58982851,122480.0,122470.0,1e-08]
[1759975337199,2.46806745,122480.0,122470.0,1e-08]
[1759975337411,2.56806744,122480.0,122470.0,1e-08]
[1759975338051,2.46806745,122480.0,122470.0,1e-08]
[1759975338271,2.56806744,122480.0,122470.0,1e-08]
[1759975338914,2.33734744,122480.0,122470.0,1e-08]
[1759975339082,2.56806744,122480.0,122460.0,0.0002]
[1759975339284,0.92254034,122470.0,122460.0,0.00025]
[1759975339430,1.17603332,122470.0,122460.0,0.00025]
[1759975339633,1.21439332,122470.0,122460.0,0.00025]
[1759975339863,1.23892315,122470.0,122460.0,0.00075788]
[1759975341358,1.24492315,122470.0,122460.0,0.00175788]
[1759975343644,1.01420315,122470.0,122460.0,0.00175788]
[1759975343874,1.24492315,122470.0,122460.0,0.00175788]
[1759975344532,1.33089315,122470.0,122460.0,0.00175788]
[1759975344784,1.24492315,122470.0,122460.0,0.00175788]
[1759975345033,1.58492315,122470.0,122460.0,0.00175788]
[1759975345207,2.25009614,122470.0,122460.0,1e-08]
[1759975345355,0.50331863,122460.0,122450.0,1e-08]
[1759975345558,0.50331863,122460.0,122450.0,0.00015017]
[1759975345559,2.18166965,122460.0,122450.0,0.00015017]
[1759975345786,2.22002965,122460.0,122450.0,0.00015017]
[1759975345996,2.24452583,122460.0,122450.0,0.00015017]
[1759975346213,0.16333197,122450.0,122440.0,0.17768736]
[1759975346375,0.16333197,122450.0,122440.0,0.17781012]
[1759975346376,1.0690755,122450.0,122440.0,0.17781012]
[1759975346569,0.9841155,122450.0,122440.0,0.17781012]
[1759975346801,1.2997955,122450.0,122440.0,0.17781012]
[1759975346999,1.32432974,122450.0,122440.0,1e-08]
[1759975347198,2.32950273,122450.0,122440.0,1e-08]
[1759975347614,1.67932974,122450.0,122440.0,0.00100001]
[1759975348089,1.67933308,122450.0,122440.0,0.00100001]
[1759975348307,2.25166904,122450.0,122440.0,1e-08]
[1759975348510,2.50742903,122450.0,122440.0,1e-08]
[1759975348721,1.82049497,122450.0,122440.0,1e-08]
[1759975348933,1.83149497,122450.0,122440.0,1e-08]
[1759975349364,1.83149497,122450.0,122430.0,1e-08]
[1759975349365,1.97481318,122440.0,122430.0,1e-08]
[1759975349569,2.31143706,122440.0,122430.0,5e-05]
[1759975349750,2.33837706,122440.0,122430.0,5e-05]
[1759975349956,2.36118706,122440.0,122430.0,5e-05]
[1759975350214,2.38572676,122440.0,122430.0,5e-05]
[1759975350655,2.38672676,122440.0,122430.0,5e-05]
[1759975351055,2.38672676,122440.0,122410.0,0.1122749]
[1759975351056,1.16854498,122420.0,122410.0,0.1122749]
[1759975351195,1.16854498,122420.0,122410.0,0.11239766]
[1759975351196,1.95074185,122420.0,122410.0,0.11239766]
[1759975351403,1.32392886,122420.0,122410.0,0.11493819]
[1759975351623,1.53956908,122420.0,122410.0,0.11493819]
[1759975351866,1.72518465,122420.0,122410.0,0.11493819]
[1759975352029,1.40934465,122420.0,122410.0,0.11493819]
[1759975352226,1.72522465,122420.0,122410.0,0.11493819]
[1759975352427,1.72622465,122420.0,122410.0,0.11593819]
[1759975352836,1.41034465,122420.0,122410.0,0.11593819]
[1759975353118,1.72622465,122420.0,122410.0,0.11593819]
[1759975353329,1.18862032,122420.0,122410.0,0.11993819]
[1759975353531,0.23664251,122420.0,122410.0,0.11993819]
[1759975353656,0.91109117,122420.0,122410.0,0.11993819]
[1759975353874,0.23664251,122420.0,122410.0,0.11993819]
[1759975354073,0.76384892,122420.0,122410.0,0.11993819]
[1759975354439,0.53284892,122420.0,122410.0,0.11993819]
[1759975354582,0.76384892,122420.0,122410.0,0.11993819]
[1759975354784,0.53284892,122420.0,122410.0,0.11993819]
[1759975355256,0.76388892,122420.0,122410.0,0.11993819]
[1759975356539,0.61597098,122420.0,122410.0,0.11993819]
[1759975356770,0.8552294,122420.0,122410.0,0.11993819]
[1759975357355,0.8552694,122420.0,122410.0,0.11993819]
[1759975357566,0.87880984,122420.0,122410.0,0.11493819]
[1759975357992,0.88180984,122420.0,122410.0,0.11593819]
[1759975359421,0.65072984,122420.0,122410.0,0.11593819]
[1759975359825,0.8572694,122420.0,122410.0,0.11593819]
[1759975360232,0.6261894,122420.0,122410.0,0.11593819]
[1759975360445,0.8573094,122420.0,122410.0,0.11593819]
[1759975361194,0.88184812,122420.0,122410.0,0.11593819]
[1759975364286,0.8590976,122420.0,122410.0,0.11593819]
[1759975364689,0.9450676,122420.0,122410.0,0.11593819]
[1759975364913,0.8590976,122420.0,122410.0,0.11593819]
[1759975366395,0.96778018,122420.0,122410.0,0.11593819]
[1759975366678,0.16338534,122410.0,122400.0,0.17634298]
[1759975366925,0.92559225,122410.0,122400.0,0.17634298]
[1759975367162,0.91045129,122410.0,122400.0,0.17634298]
[1759975367633,1.16428378,122410.0,122400.0,0.17634298]
[1759975368568,1.16528378,122410.0,122400.0,0.17634298]
[1759975368790,1.25028378,122410.0,122400.0,0.17634298]
[1759975369248,0.93416378,122410.0,122400.0,0.17734298]
[1759975369446,1.25028378,122410.0,122400.0,0.17734298]
[1759975369855,1.25028378,122410.0,122400.0,0.17634298]
[1759975370313,1.01816378,122410.0,122400.0,0.17634298]